Cogmind - Beta 13 @@@ ROGUE MODE // 2024.04.13 @ 21:33:30 Player: Morphaana Result: Destroyed by Y-54 Guardian with Gatling Laser Performance ------------- Evolutions (3) 1500 Regions Visited (5) 1000 Robots Destroyed (92) 460 Value Destroyed (2199) 2199 Prototype IDs (3) 60 Alien Tech Used (0) 0 Bonus (246) 246 TOTAL SCORE: 5465 Bonus ------- High Alert Combat Kills 246 Cogmind --------- Core Integrity 0/700 Matter 300/300 Energy 100/100 System Corruption 0% Temperature Cool (21) Movement Core (50) Location -7/Storage Parts ------- > --- POWER (1) -------- (None) > --- PROPULSION (5) --- (None) > --- UTILITY (5) ------ Improved Signal Interpreter Hacking Suite System Shield > --- WEAPON (2) ------- (None) > --- INVENTORY (5) ---- Improved Sensor Array Improved Propulsion Shielding Hacking Suite Improved Field Recycling Unit (0) Grenade Launcher Peak State ------------ > --- POWER ------------ Micro Nuclear Core > --- PROPULSION ------- Improved Flight Unit Improved Flight Unit Improved Flight Unit Improved Flight Unit Xenon Bombardment Thruster > --- UTILITY ---------- Improved Signal Interpreter Improved Propulsion Shielding Hacking Suite Hacking Suite System Shield > --- WEAPON ----------- Katana > --- INVENTORY -------- Improved Ion Engine Medium Storage Unit Hacking Suite Improved Field Recycling Unit Grenade Launcher [Rating: 39] Favorites ----------- Power Light Ion Engine Engine Light Ion Engine Power Core Micro Nuclear Core Propulsion Light Treads Treads Light Treads Leg Aluminum Leg Flight Unit Improved Flight Unit Utility Medium Storage Unit Device Heat Sink Storage Medium Storage Unit Processor Signal Interpreter Hackware Hacking Suite Protection Light Armor Plating Weapon Heavy Assault Rifle Energy Gun Small Laser Ballistic Gun Heavy Assault Rifle Launcher Grenade Launcher Slashing Weapon Katana Build | -11 -10 -9 -8 -7 -7 ------- Run | Yrd Mat Mat Mat Fac Sto Slots Evolved 6 | . . 2 2 2 . Power . | . . . . . . Propulsion 3 | . . 1 1 1 . Utility 3 | . . 1 1 1 . Weapon . | . . . . . . Parts Attached 94 | 6 5 46 23 12 2 Power 20 | 1 2 7 6 2 2 Engine 18 | 1 2 7 5 1 2 Core 2 | . . . 1 1 . Reactor . | . . . . . . Propulsion 32 | 2 . 20 7 3 . Treads 8 | 2 . 6 . . . Leg 8 | . . 8 . . . Wheel . | . . . . . . Hover . | . . . . . . Flight 16 | . . 6 7 3 . Utility 24 | 1 3 9 5 6 . Device 7 | . 1 4 1 1 . Storage 7 | 1 1 3 . 2 . Processor 2 | . 1 . 1 . . Hackware 3 | . . . 1 2 . Protection 5 | . . 2 2 1 . Artifact . | . . . . . . Weapon 18 | 2 . 10 5 1 . Energy Gun 5 | 2 . 3 . . . Energy Cannon . | . . . . . . Ballistic Gun 3 | . . 3 . . . Ballistic Cannon . | . . . . . . Launcher 5 | . . 3 2 . . Special Weapon . | . . . . . . Impact Weapon . | . . . . . . Slashing Weapon 5 | . . 1 3 1 . Piercing Weapon . | . . . . . . Special Melee Weapon . | . . . . . . Unidentified Prototypes 2 | . . 2 . . . Parts Lost 33 | . 1 14 6 1 11 Power 11 | . 1 4 3 . 3 Propulsion 14 | . . 7 1 1 5 Utility 5 | . . 1 2 . 2 Weapon 3 | . . 2 . . 1 Highest Loss Streak 8 | . 1 5 5 1 8 To Critical Strikes . | . . . . . . Average Slot Usage (%) 89 | . 98 87 81 80 73 Engine 10 | . 13 10 7 6 3 Treads 17 | . 28 18 . . . Leg 4 | . . 8 . . . Flight 7 | . . 1 35 29 27 Device 5 | . 12 2 3 . . Storage 10 | . 14 11 8 1 6 Processor 6 | . . 11 9 7 7 Hackware 3 | . . . 9 19 21 Protection 2 | . . 4 2 6 . Energy Gun 11 | . 28 5 . . . Ballistic Gun 5 | . . 10 . . . Slashing Weapon 1 | . . 1 3 6 5 Naked Turns . | . . . . . . Heaviest Build 31 | 11 17 31 21 21 19 Greatest Support 60 | 40 40 60 20 26 26 Greatest Overweight (x) 4 | . . 4 1 1 1 Average Overweight (x) . | . . . . . . Largest Inventory Capacity 10 | 8 10 10 10 10 10 Average Capacity 9 | 7 9 10 9 6 9 Most Carried 10 | . 9 10 10 5 5 Average Carried 7 | . 5 9 8 4 4 Final Capacity 10 | 8 10 10 5 10 5 Final Carried 10 | . 9 10 5 5 5 Class Distribution -------------------- 44% | Scavenger-Mutant 35% | Mutant 8% | Hacker-Sprinter 5% | Sprinter Dominant Class ---------------- Mutant | -10/Materials Scavenger-Mutant | -9/Materials Sprinter | -8/Materials Hacker-Sprinter | -7/Factory Hacker-Sprinter | -7/Storage Resources | -11 -10 -9 -8 -7 -7 ----------- Run | Yrd Mat Mat Mat Fac Sto Matter Collected 1709 | 234 71 865 163 306 70 Remotely . | . . . . . . Salvage Created 2993 | . 705 1993 89 134 72 Parts 195 | . 45 118 11 8 13 Haulers Intercepted 6 | . 2 4 . . . Recyclers Shooed 3 | . 1 1 1 . . Parts Field Recycled . | . . . . . . Retrieved Matter . | . . . . . . Parts Self-Destructed . | . . . . . . Prevented . | . . . . . . Kills | -11 -10 -9 -8 -7 -7 ------- Run | Yrd Mat Mat Mat Fac Sto Combat Hostiles Destroyed 62 | . 14 41 7 . . Melee 1 | . . 1 . . . Guns 43 | . 12 31 . . . AOE 16 | . . 9 7 . . Classes Destroyed 12 | . 7 5 . . . Worker 7 | . 2 3 1 1 . Builder 3 | . . 1 . . 2 Tunneler 1 | . 1 . . . . Hauler 6 | . 2 4 . . . Recycler 2 | . . 1 . 1 . Operator 5 | . 2 2 . 1 . Watcher 10 | . 3 4 1 1 1 Swarmer 13 | . 3 3 7 . . Grunt 38 | . 11 27 . . . Brawler 1 | . . 1 . . . Duelist 2 | . . 2 . . . Sentry 8 | . . 8 . . . Best Kill Streak 8 | . 7 8 5 2 2 Combat Bots Only 5 | . 5 5 4 . . Max Kills in Single Turn 3 | . 1 2 3 1 1 Gunslinging . | . . . . . . Exploded 3 | . . 2 3 . . Melee 1 | . . 1 . . . Uniques/NPCs Destroyed . | . . . . . . Combat | -11 -10 -9 -8 -7 -7 -------- Run | Yrd Mat Mat Mat Fac Sto Hostile Shots Fired 623 | . 69 203 142 18 191 Missed 260 | . 23 72 69 10 86 Damage Taken 4621 | . 491 1927 917 96 1190 Core 1491 | . 66 331 392 36 666 Absorbed by Shields 117 | . . . . . 117 Redirected to Shielding 80 | . . . 60 20 . Core Remaining (%) 54 | 100 73 17 28 . . Volleys Fired 230 | . 87 138 5 . . Largest 2 | . 2 2 1 . . Hottest 90 | . 90 90 30 . . Shots Fired 419 | . 174 240 5 . . Gun 400 | . 174 226 . . . Cannon . | . . . . . . Launcher 19 | . . 14 5 . . Special . | . . . . . . Kinetic 168 | . . 168 . . . Thermal 232 | . 174 58 . . . Explosive 19 | . . 14 5 . . Electromagnetic . | . . . . . . Robot Hit Streak 23 | . 21 23 1 . . Robot Miss Streak 4 | . 3 4 2 . . Penetration Max . | . . . . . . Secondary Targets 3 | . 1 2 . . . Max Gunslinging Chain 1 | . 1 1 . . . Shots Hit Robots 292 | . 115 158 3 9 7 Core Hits 154 | . 42 95 10 4 3 Critical Kills . | . . . . . . Critical Parts Destroyed . | . . . . . . Critical Strikes 11 | . 5 5 . . 1 Burn 8 | . 5 3 . . . Sever 3 | . . 2 . . 1 Melee Attacks 41 | . . 5 9 10 17 Impact . | . . . . . . Slashing 41 | . . 5 9 10 17 Piercing . | . . . . . . Sneak Attacks 5 | . . 1 . 1 3 Combat Hostiles . | . . . . . . Follow-up Attacks . | . . . . . . Damage Inflicted 5861 | . 1410 3153 524 412 362 Guns 3597 | . 1403 2194 . . . Cannons . | . . . . . . Explosions 1260 | . . 807 453 . . Melee 991 | . . 146 71 412 362 Ramming 13 | . 7 6 . . . Kinetic 1697 | . . 1697 . . . Thermal 1900 | . 1403 497 . . . Explosive 1260 | . . 807 453 . . Electromagnetic . | . . . . . . Impact . | . . . . . . Slashing 991 | . . 146 71 412 362 Piercing . | . . . . . . Highest Corruption . | . . . . . . Average Corruption . | . . . . . . Corruption Purged . | . . . . . . Corruption Blocked . | . . . . . . Overload Shots . | . . . . . . Overflow Damage 143 | . . 22 38 66 17 Projectiles . | . . . . . . Explosions 38 | . . . 38 . . Melee 105 | . . 22 . 66 17 Knockbacks . | . . . . . . Impact . | . . . . . . Kinetic . | . . . . . . Secondary . | . . . . . . Self-Inflicted Damage 137 | . . 111 26 . . Shots 5 | . . 4 1 . . Rammed 2 | . 1 1 . . . Targets Rammed 3 | . 2 1 . . . Kicked . | . . . . . . Crushed 1 | . 1 . . . . Highest Temperature 221 | . 156 221 18 5 6 Average Temperature 44 | . 41 53 8 3 3 Received Heat Transfer 1784 | . 255 732 270 45 482 Siege Activations . | . . . . . . Robots Corrupted . | . . . . . . Combat Hostiles . | . . . . . . Parts Fried 1 | . . 1 . . . Impact Corruptions . | . . . . . . Robots Melted 2 | . 2 . . . . Combat Hostiles 2 | . 2 . . . . Parts Melted 13 | . 11 2 . . . Heat Transferred 5621 | . 4113 1508 . . . Parts Sabotaged . | . . . . . . Parts Stolen . | . . . . . . Parts Stripped . | . . . . . . Power Chain Reactions . | . . . . . . Alert | -11 -10 -9 -8 -7 -7 ------- Run | Yrd Mat Mat Mat Fac Sto Peak Influence 1123 | . 225 910 1123 748 548 Initial 510 | . . 27 357 510 339 Average 340 | . 59 430 695 598 409 Maximum Alert Level 4 | . 1 3 4 3 2 Low Security (%) 42 | 100 97 22 . . . Level 1 16 | . 2 24 13 . 63 Level 2 24 | . . 27 44 82 36 Level 3 16 | . . 25 40 17 . Level 4 . | . . . 1 . . Level 5 . | . . . . . . High Security . | . . . . . . Max Security . | . . . . . . Squads Dispatched 23 | . 4 10 3 3 3 Investigation 10 | . 1 6 2 1 . Extermination . | . . . . . . Reinforcement 11 | . 3 2 1 2 3 Assault 2 | . . 2 . . . Garrison . | . . . . . . Intercept . | . . . . . . Searches Triggered . | . . . . . . Construction Impeded 1 | . . 1 . . . Haulers Reinforced 1 | . . . . . 1 Active Scanning Responses . | . . . . . . Cargo Convoy Interrupts . | . . . . . . Stealth | -11 -10 -9 -8 -7 -7 --------- Run | Yrd Mat Mat Mat Fac Sto Distress Signals 7 | . 1 3 1 . 2 Communications Jammed . | . . . . . . Distress Signals . | . . . . . . Times Spotted 175 | . 29 60 46 17 23 Peak Tracking Total 17 | . 5 8 17 7 14 Tactical Retreats 23 | . . 5 10 2 6 Traps | -11 -10 -9 -8 -7 -7 ------- Run | Yrd Mat Mat Mat Fac Sto Traps Triggered 6 | . . 1 . 2 3 Indirectly . | . . . . . . Trap Hack Attempts . | . . . . . . Triggered . | . . . . . . Disarmed 4 | . 4 . . . . Reprogrammed 6 | . . 6 . . . Reused 6 | . . 6 . . . Traps Extracted . | . . . . . . Installed . | . . . . . . Triggered 6 | . . 6 . . . Machines | -11 -10 -9 -8 -7 -7 ---------- Run | Yrd Mat Mat Mat Fac Sto Machines Disabled 3 | . . 2 1 . . Max in Single Turn 1 | . . 1 1 . . Machines Repaired . | . . . . . . Machines Dismantled . | . . . . . . Machines Sabotaged . | . . . . . . Overloaded Fab Kills . | . . . . . . Hacking | -11 -10 -9 -8 -7 -7 --------- Run | Yrd Mat Mat Mat Fac Sto Machines Accessed 26 | . 5 5 7 7 2 Terminals 20 | . 4 4 6 4 2 Fabricators 1 | . . . . 1 . Repair Stations . | . . . . . . Recycling Units 1 | . 1 . . . . Scanalyzers 4 | . . 1 1 2 . Garrison Access . | . . . . . . Total Hacks 82 | . 15 23 22 18 4 Successful 54 | . 8 13 14 15 4 Failed 28 | . 7 10 8 3 . Catastrophic 4 | . . 3 1 . . Database Lockouts . | . . . . . . Manual 34 | . 8 9 10 5 2 Terminals 62 | . 14 16 20 8 4 Fabricators 4 | . . . . 4 . Repair Stations . | . . . . . . Recycling Units 1 | . 1 . . . . Scanalyzers 15 | . . 7 2 6 . Garrison Access . | . . . . . . Terminal Hacks 20 | . 4 4 6 4 2 Part Schematic 1 | . . . . . 1 Robot Analysis 1 | . . 1 . . . Prototype ID Bank 1 | . . . 1 . . Open DSF 1 | . . . . 1 . Emergency Access Points 1 | . . . . 1 . Scanalyzer Index 2 | . . . 1 1 . Unreport Threat 1 | . 1 . . . . Locate Traps 1 | . . . 1 . . Disarm Traps 1 | . 1 . . . . Reprogram Traps 1 | . . 1 . . . Maintenance Status 1 | . . 1 . . . Patrol Status 1 | . . . 1 . . Transport Status 1 | . . . 1 . . Investigation Status 1 | . . 1 . . . Hauler Manifests 4 | . 2 . 1 1 . Zone Layout 1 | . . . . . 1 Fabricator Hacks 2 | . . . . 2 . Load Schematic 1 | . . . . 1 . Build 1 | . . . . 1 . Repair Station Hacks . | . . . . . . Recycling Unit Hacks 1 | . 1 . . . . Report Inventory 1 | . 1 . . . . Scanalyzer 14 | . . 6 2 6 . Insert Component 7 | . . 3 1 3 . Analyze 7 | . . 3 1 3 . Garrison Access Hacks . | . . . . . . Unauthorized Hacks 16 | . 3 2 6 3 2 Terminals 16 | . 3 2 6 3 2 Botnet 16 | . 3 2 6 3 2 Fabricators . | . . . . . . Repair Stations . | . . . . . . Recycling Units . | . . . . . . Scanalyzers . | . . . . . . Garrison Access . | . . . . . . Data Cores Recovered 1 | . . 1 . . . Used . | . . . . . . Hacking Detections 17 | . 4 5 4 4 . Full Trace Events 11 | . 2 5 3 1 . Feedback Events . | . . . . . . Feedback Blocked . | . . . . . . Robot Schematics Acquired . | . . . . . . Robots Built . | . . . . . . Authchips . | . . . . . . Time . | . . . . . . Total Robot Build Rating . | . . . . . . Part Schematics Acquired 5 | . . 3 1 . 1 Parts Built 1 | . . . . 1 . Authchips . | . . . . . . Time 49 | . . . . 49 . Total Part Build Rating 2 | . . . . 2 . Parts Repaired . | . . . . . . Time . | . . . . . . Parts Recycled . | . . . . . . Recycled Matter . | . . . . . . Retrieved Matter . | . . . . . . Retrieved Components . | . . . . . . Parts Scanalyzed 7 | . . 3 1 3 . Part Schematics Acquired 4 | . . 3 1 . . Parts Damaged . | . . . . . . Bothacking | -11 -10 -9 -8 -7 -7 ------------ Run | Yrd Mat Mat Mat Fac Sto Used RIF Installer . | . . . . . . Robots Hacked . | . . . . . . Non-combat . | . . . . . . Combat . | . . . . . . Robot Hacks Applied . | . . . . . . Relay Couplers Released . | . . . . . . Fabnet Peak Effective % . | . . . . . . Robots Rewired . | . . . . . . Allies Hacked . | . . . . . . Hacks Repelled . | . . . . . . Allies | -11 -10 -9 -8 -7 -7 -------- Run | Yrd Mat Mat Mat Fac Sto Total Allies . | . . . . . . Largest Group . | . . . . . . Highest-Rated Group . | . . . . . . Highest-Rated Ally . | . . . . . . Total Orders . | . . . . . . Ally Attacks . | . . . . . . Total Damage . | . . . . . . Kills . | . . . . . . Allies Corrupted . | . . . . . . Allies Melted . | . . . . . . Intel | -11 -10 -9 -8 -7 -7 ------- Run | Yrd Mat Mat Mat Fac Sto Robot Analysis Total 1 | . . 1 . . . Derelict Logs Recovered . | . . . . . . Drone Launches . | . . . . . . Drone Recoveries . | . . . . . . Exploration | -11 -10 -9 -8 -7 -7 ------------- Run | Yrd Mat Mat Mat Fac Sto Turns Passed 4281 | 65 1344 2002 354 303 213 Spaces Moved 3409 | 37 600 994 807 669 302 Core 3 | 2 . 1 . . . Treads 1115 | 35 600 480 . . . Legs 365 | . . 365 . . . Wheels . | . . . . . . Hover . | . . . . . . Flight 1926 | . . 148 807 669 302 Fastest Speed 28 | 50 160 37 31 28 28 Average Speed 86 | 154 160 135 31 31 33 Slowest Speed 250 | 160 160 250 104 101 112 Overloaded Moves . | . . . . . . Propulsion Burnouts . | . . . . . . Robots Hopped 9 | . . . 6 3 . Cave-ins Triggered . | . . . . . . Exploration Rate (%) 46 | 4 78 62 62 17 55 Regions Visited 5 Branch Regions 1 Pre-discovered Areas . | . . . . . . Known Exits Taken 4 | . 1 1 1 1 . Unknown Exits Taken 1 | 1 . . . . . Scrap Searched . | . . . . . . Spaces Dug 1 | . . . 1 . . Terrain Destroyed 109 | . . 73 36 . . Melee 1 | . . . 1 . . Projectile . | . . . . . . AOE 108 | . . 73 35 . . Terrain Rammed . | . . . . . . Walls Destroyed . | . . . . . . Machines Disabled . | . . . . . . Actions | -11 -10 -9 -8 -7 -7 --------- Run | Yrd Mat Mat Mat Fac Sto Total 4266 | 42 806 1406 881 743 388 Wait 359 | . 106 150 27 25 51 Move 3387 | 36 599 993 795 662 302 Hop 8 | . . . 5 3 . Pick Up 48 | . 7 34 3 3 1 Fast Attach 30 | 6 2 14 2 5 1 Attach 41 | . . 22 13 5 1 Detach 20 | . . 8 8 4 . Swap 23 | . 3 10 8 2 . Drop 41 | . . 31 6 4 . Fire 230 | . 87 138 5 . . Melee 41 | . . 5 9 10 17 Ram . | . . . . . . Kick . | . . . . . . Crush 3 | . 2 1 . . . Escape Stasis 35 | . . . . 20 15 Rewire . | . . . . . . Trap . | . . . . . . Miscellaneous . | . . . . . . Route ------- -11/Scrapyard -10/Materials (discovered 3 exits: *Mat x2 / [*Min]) -9/Materials (discovered 2 exits: *Mat / *Min) -8/Materials -7/Factory -7/Storage (discovered 1 exit: [Rec]) History --------- Turn | Location | Event 12 | -11/Scrapyard | Discovered new exit (range 14) 66 | -11/Scrapyard | Entered Materials 305 | -10/Materials | Build established: Mutant 416 | -10/Materials | Discovered new exit (range 14) 739 | -10/Materials | Discovered new exit (range 12) 939 | -10/Materials | Discovered new exit (range 12) 1408 | -10/Materials | Identified exit to Materials 1410 | -10/Materials | Entered another Materials area 1410 | -9/Materials | Evolved 2 slots: Propulsion x1, Utility x1 1778 | -9/Materials | Build established: Scavenger-Mutant 2610 | -9/Materials | First assault squad dispatched 2668 | -9/Materials | Discovered new exit (range 16) 2713 | -9/Materials | Core integrity fell below 50% 2730 | -9/Materials | Identified exit to Mines 2746 | -9/Materials | Lost 5 parts (1p3n1w) 3161 | -9/Materials | Core integrity fell below 20% 3383 | -9/Materials | Discovered new exit (range 11) 3411 | -9/Materials | Identified exit to Materials 3412 | -9/Materials | Entered another Materials area 3412 | -8/Materials | Evolved 2 slots: Propulsion x1, Utility x1 3698 | -8/Materials | Core integrity fell below 50% 3756 | -8/Materials | Lost 5 parts (3p1n1u) 3762 | -8/Materials | Discovered new exit (range 16) 3766 | -8/Materials | Identified exit to Factory 3766 | -8/Materials | Entered Factory 3766 | -7/Factory | Evolved 2 slots: Propulsion x1, Utility x1 3945 | -7/Factory | Fabricated Imp. Flight Unit? 4067 | -7/Factory | Discovered new exit (range 7) 4068 | -7/Factory | Identified exit to Storage 4069 | -7/Factory | Entered Storage 4156 | -7/Storage | Lost 3 parts (2p1n) 4229 | -7/Storage | Discovered new exit (range 12) 4265 | -7/Storage | Core integrity fell below 50% 4279 | -7/Storage | Core integrity fell below 20% 4282 | -7/Storage | Destroyed by Y-54 Guardian with Gatling Laser Last Messages --------------- Field strength at 70. Field strength at 65. Field strength at 60. Field strength at 55. Field strength at 50. Field strength at 45. Field strength at 40. Field strength at 27. Xenon Bombardment Thruster destroyed. Field strength at 18. Field strength at 13. Field strength at 4. Stasis field depleted. Triggered Stasis Trap. A bubble of rippling energy engulfs the area. Field strength at 95. Med. Storage Unit destroyed. Imp. Flight Unit destroyed. Stasis field depleted. [Achievement: 5k Club] Map ----- +----------------------------------------------------+ | ??????????????# # # #??#"" | | ??????????????# # ## ##??#"T | | ??????????????# #+####### #???#"" | | ??????????????# # ??????# #???#"" | | ??????????????# # #?????# #???## | | ??????????????# # #????## ##???# | | ??????????#####+##+# ###### #???## | | ??????????# + " ####### | | ??????????# """" # "T # | | ??????????# "" " # ##### # | | ??????????# """ " # #???## ### | | ??????????# " """ # #????# #?# | | ??????????# " "" # #????# #?# | | ??????????# """" # ######+### | | ??????????# + ## # | | ??????????# # ## "" # | | ??????????########## ## Y" # | | ???????####"####### # "" # | | ???????# " # # | | ???????# < " T + ####### | | ???????# "#T##### # ##????? | | ??????#########???## ## #????? | | ??### ####?????????# ## ##????? | | # ########### ## #?????? | | #""" Y gg Y ## #?????? | | #""" # @g ##########?????? | | #""" ##############??????????????? | | # ! #???????????????????????????? | | # #???????????????????????????? | | # #???????????????????????????? | | ##########???????????????????????????? | | ?????????????????????????????????????? | | | | | | | | | | | | | | | | | | | | | | | | | | | | | | | | | | | | | +----------------------------------------------------+ Best States ------------- Heat Dissipation 38 Coolant Potential 50 Energy Generation 15 Energy Capacity 275 Matter Stores 300 Matter Capacity 300 Sight Range 16 Robot Scan Range 15 Terrain Scan Density 10 Armor Coverage 225 Propulsion Shielding 66 Evasion (%) 64 Recoil Reduction 3 Offensive Hacking 20 Defensive Hacking 10 Item Schematics ----------------- Hacking Suite | -9/Materials | Scanalyzed Ion Engine | -9/Materials | Scanalyzed Signal Interpreter | -9/Materials | Scanalyzed Imp. Flight Unit | -8/Materials | Scanalyzed Lgt. Fission Core | -7/Storage | Hacked Robot Schematics ------------------ None Fabricated ------------ Imp. Flight Unit | x1 | -7/Factory Alien Tech Used ----------------- None Achievements -------------- 5k Club I Spy Just What I Needed Let's See Who's Tougher Significant Disruption Challenges ------------ None Game ------ Seed OpticalHeatCorpse Manual? 0 Play Time 01:35:35 Cumulative 5.2 hours Start 2024.04.13 @ 19:53:31 End 2024.04.13 @ 21:33:30 Sessions 1 Manual Loads 0 Difficulty Rogue Special Mode None Game No. 6 Rogue 6 Adventurer 0 Explorer 0 Win Type - Total 0 Types 0/0/0/0/0/0/0/0/0 Lore% 1 Gallery% 7 Achievement% 9 Wizard Run 0 Options --------- Layout 1 ASCII 0 Keyboard 0 Movement Mouse Keybinds 0 Fullscreen 1 Font 16/SmallcapsGlow Map View 50x35 Zoom Use 0% Tactical HUD 0 Map Filters NONE Filters NONE Steam SD RUN: edf003c2-b4f7-4c46-a0ec-ea89ed55428b